bitfinex/quotes_ETHUSD_20240719
["timestamp","ask_amount","ask_price","bid_price","bid_amount"]
[1721348783599,2.92218,3422.1,3421.6,2.4072]
[1721348785902,5.84443,3422.1,3421.6,2.4072]
[1721348786287,2.92218,3422.1,3421.6,2.4072]
[1721348787815,5.84443,3422.1,3421.6,2.4072]
[1721348788170,2.92218,3422.1,3421.6,5.32979]
[1721348788376,2.92203,3422.3,3421.6,5.32979]
[1721348788571,2.92188,3422.5,3421.9,2.92232]
[1721348788772,2.9217,3422.7,3422.0,2.92221]
[1721348789075,2.92185,3422.5,3422.0,2.92221]
[1721348789619,7.42,3422.8,3422.0,2.92221]
[1721348789776,2.92139,3423.1,3422.4,2.92191]
[1721348790489,2.92155,3422.9,3422.3,2.92196]
[1721348791204,2.92155,3422.9,3422.4,2.92192]
[1721348791573,2.92139,3423.1,3422.5,2.92176]
[1721348792184,0.1493441,3423.2,3422.6,2.92167]
[1721348792378,3.1493441,3423.2,3422.6,2.92167]
[1721348792573,0.1493441,3423.2,3423.1,5.84264]
[1721348792804,0.1493441,3423.2,3423.1,8.25764]
[1721348793014,0.1493441,3423.2,3423.1,5.33632]
[1721348793308,0.1493441,3423.2,3423.1,2.415]
[1721348793609,0.1493441,3423.2,3423.0,2.92141]
[1721348794626,0.1493441,3423.2,3423.1,2.92132]
[1721348794943,0.1493441,3423.2,3423.1,6.426913]
[1721348795233,0.1493441,3423.2,3423.1,0.584273]
[1721348795397,0.1493441,3423.2,3422.9,2.92147]
[1721348795632,0.1493441,3423.2,3422.7,5.18234]
[1721348797804,0.1493441,3423.2,3422.8,2.92156]
[1721348798003,0.1493441,3423.2,3422.7,2.2607]
[1721348798201,0.1493441,3423.2,3423.1,2.92132]
[1721348798865,0.1493441,3423.2,3423.1,6.426914]
[1721348799138,0.1493441,3423.2,3423.1,3.505594]
[1721348799441,0.1493441,3423.2,3423.1,2.92132]
[1721348799937,0.1493441,3423.2,3423.0,2.92141]
[1721348800323,0.1493441,3423.2,3423.1,2.92132]
[1721348802134,0.1493441,3423.2,3423.0,2.9214]
[1721348802333,0.1493441,3423.2,3423.0,2.92133]
[1721348802539,0.1493441,3423.2,3423.1,6.134773]
[1721348803612,0.1493441,3423.2,3423.1,6.684773]
[1721348804839,0.1493441,3423.2,3423.1,9.127773]
[1721348805533,0.1493441,3423.2,3423.1,5.656453]
[1721348805706,0.1493441,3423.2,3423.1,2.443]
[1721348806631,0.1493441,3423.2,3423.1,5.36432]
[1721348807548,0.1493441,3423.2,3423.1,8.28564]
[1721348808141,0.1493441,3423.2,3423.1,11.75696]
[1721348814871,0.1493441,3423.2,3423.1,17.76028]
[1721348815027,7.42,3424.6,3424.2,2.92038]
[1721348815229,2.91991,3424.8,3424.2,2.92032]
[1721348815760,2.91991,3424.8,3424.2,5.84064]
[1721348815928,2.91991,3424.8,3424.2,2.92032]
[1721348817072,5.83987,3424.8,3424.2,2.92032]
[1721348817377,2.91991,3424.8,3424.2,2.92032]
[1721348817522,2.91991,3424.8,3424.2,5.84064]
[1721348817727,2.91991,3424.8,3424.2,2.92032]
[1721348817728,2.92001,3424.7,3424.2,2.92032]
[1721348818328,2.91974,3425.0,3424.2,2.92032]
[1721348818579,2.91974,3425.0,3424.3,2.9203]
[1721348818580,5.91986,3424.9,3424.3,2.9203]
[1721348818769,2.91988,3424.8,3424.3,2.9203]
[1721348819084,3.0,3424.9,3424.3,2.92024]
[1721348819925,2.91989,3424.8,3424.3,2.92024]
[1721348820826,2.92005,3424.6,3423.9,2.9206]
[1721348821029,2.92005,3424.6,3423.8,2.92072]
[1721348821030,2.92028,3424.4,3423.8,2.92072]
[1721348821326,2.2547,3425.2,3423.2,2.92123]
[1721348821327,2.92073,3423.8,3423.2,2.92123]
[1721348821546,2.92073,3423.8,3423.1,1.117465]
[1721348821547,2.92081,3423.7,3423.1,1.117465]
[1721348821746,2.92081,3423.7,3423.2,0.31174605]
[1721348823282,2.92091,3423.6,3422.9,2.3788]
[1721348823451,2.92101,3423.5,3423.0,2.92136]
[1721348824031,2.92081,3423.7,3423.0,2.92136]
[1721348824032,2.92081,3423.7,3423.0,5.84269]
[1721348824235,2.92081,3423.7,3423.0,2.92133]
[1721348824536,2.92081,3423.7,3423.1,2.92131]
[1721348824758,2.92081,3423.7,3422.9,5.30023]
[1721348824968,2.92097,3423.6,3423.0,2.92135]
[1721348825775,2.92097,3423.6,3423.1,2.92132]
[1721348826135,5.84154,3423.8,3423.1,2.92132]
[1721348826335,2.92059,3424.0,3423.2,2.92124]
[1721348826671,2.92032,3424.3,3423.6,5.8417]
[1721348826988,2.92032,3424.3,3423.7,2.9208]
[1721348828276,2.92043,3424.2,3423.7,2.9208]
[1721348828478,2.92043,3424.2,3423.5,2.92091]
[1721348828774,2.92043,3424.2,3423.6,2.92088]
[1721348828960,2.92043,3424.2,3423.6,5.84171]
[1721348829556,2.92017,3424.5,3423.6,2.92083]
[1721348829754,2.92031,3424.3,3423.8,2.92067]
[1721348829957,2.92017,3424.5,3423.8,2.92067]
[1721348829958,5.84037,3424.5,3423.8,2.92067]
[1721348830167,2.92023,3424.4,3423.8,2.92067]
[1721348830556,2.92023,3424.4,3423.8,5.84132]
[1721348830853,2.92023,3424.4,3423.9,2.92062]
[1721348831312,2.92,3424.7,3424.1,2.92046]
[1721348831587,5.91979,3424.9,3424.3,2.92028]
[1721348831588,5.91981,3424.9,3424.3,2.92028]
[1721348831757,2.91971,3425.0,3424.4,2.92015]
[1721348831943,2.91971,3425.0,3424.5,2.92012]
[1721348832281,2.91975,3425.0,3424.3,2.92023]
[1721348832445,2.91975,3425.0,3424.4,2.92018]
[1721348832948,2.91981,3424.9,3424.2,2.92034]
[1721348833314,2.91965,3425.1,3424.2,6.370824]
[1721348833461,2.91992,3424.8,3424.0,2.92054]
[1721348833659,2.92001,3424.7,3424.0,2.92048]
[1721348833970,2.92007,3424.6,3424.0,2.92048]
[1721348834683,2.92007,3424.6,3424.0,5.84097]
[1721348835187,2.92007,3424.6,3424.1,2.92045]
[1721348836252,2.91989,3424.8,3424.2,2.92038]
[1721348836981,2.91989,3424.8,3424.0,0.6425097]
[1721348836982,2.92013,3424.5,3424.0,2.92049]
[1721348837181,3.0,3425.5,3423.6,2.4387]
[1721348837182,2.92035,3424.3,3423.6,2.4387]
[1721348837481,2.92031,3424.3,3423.8,2.92072]
[1721348838755,2.92031,3424.3,3423.7,2.92074]
[1721348840474,2.92034,3424.3,3423.5,2.92094]
[1721348840681,3.7964,3424.3,3423.5,2.92094]
[1721348840885,2.92058,3424.0,3423.3,2.92108]
[1721348841263,2.92058,3424.0,3423.4,2.92101]
[1721348841770,2.92092,3423.6,3423.1,2.4161]
[1721348841977,2.92092,3423.6,3423.0,2.92134]
[1721348842205,2.92114,3423.4,3422.8,2.4237]
[1721348842362,2.92137,3423.1,3422.4,5.34557]
[1721348842555,2.92137,3423.1,3422.4,8.26742]
[1721348842755,2.3068,3423.2,3422.3,1.83332165]
[1721348842986,3.505328,3423.4,3422.3,4.75532165]
[1721348842987,2.92154,3422.9,3422.3,4.75532165]
[1721348843398,2.92159,3422.8,3422.3,1.83332165]
[1721348843959,2.92187,3422.5,3422.3,1.83332165]
[1721348844359,2.92187,3422.5,3421.9,2.92234]
[1721348844898,2.92187,3422.5,3421.8,5.34612]
[1721348845233,2.9221,3422.2,3421.6,2.92253]
[1721348847559,2.9221,3422.2,3421.4,5.34641]
[1721348847979,2.9221,3422.2,3421.5,2.92267]
[1721348848793,2.3068,3422.8,3421.4,2.4237]
[1721348849114,5.3068,3422.8,3421.4,2.4237]
[1721348849393,2.92236,3421.9,3421.4,2.4237]
[1721348850281,2.92219,3422.1,3421.4,2.4237]
[1721348850596,2.92219,3422.1,3421.4,5.34647]
[1721348850890,2.92227,3422.0,3421.4,5.34647]
[1721348851587,2.92209,3422.2,3421.5,2.92269]
[1721348851781,2.92209,3422.2,3421.5,3.749606]
[1721348852093,2.92195,3422.4,3421.5,3.749606]
[1721348852294,2.92177,3422.6,3421.5,3.749606]
[1721348852295,2.92143,3423.0,3422.4,2.92191]
[1721348852498,2.92126,3423.2,3422.4,2.92185]
[1721348852663,2.9215,3422.9,3422.3,2.92195]
[1721348852860,2.92164,3422.8,3422.1,2.92212]
[1721348853115,2.92164,3422.8,3422.1,3.506564]
[1721348853265,2.92164,3422.8,3422.2,2.92204]
[1721348854975,2.92176,3422.6,3422.0,2.92224]
[1721348855707,2.2888,3423.3,3421.8,2.92242]
[1721348855908,3.0,3423.5,3421.3,2.4905]
[1721348855909,2.92238,3421.9,3421.3,2.4905]
[1721348856121,2.92238,3421.9,3421.3,5.41336]
[1721348856794,2.4223,3422.5,3420.9,2.2794]
[1721348856993,2.92257,3421.7,3420.9,2.2794]
[1721348857199,2.92266,3421.6,3421.0,2.92307]
[1721348857496,2.4223,3422.5,3421.1,2.92303]
[1721348857497,2.92251,3421.8,3421.1,2.92303]
[1721348857697,2.92253,3421.7,3421.1,2.92303]
[1721348857871,2.92242,3421.9,3421.2,2.92294]
[1721348858212,2.92176,3422.6,3421.6,2.92257]
[1721348858501,2.92194,3422.4,3421.8,2.92238]
[1721348858800,2.92194,3422.4,3421.9,2.92234]
[1721348860683,2.92194,3422.4,3421.7,5.84495]
[1721348860913,2.92202,3422.3,3421.7,2.92245]
[1721348861194,2.92202,3422.3,3421.7,5.84489]
[1721348861367,2.92202,3422.3,3421.7,2.92244]
[1721348861795,2.92178,3422.6,3421.7,3.506949]
[1721348861796,2.92191,3422.5,3421.7,3.506949]
[1721348861983,2.92191,3422.5,3421.9,2.92233]
[1721348869044,2.92195,3422.4,3421.9,2.92233]
[1721348869335,2.92195,3422.4,3421.8,2.92239]
[1721348872801,2.92163,3422.8,3421.3,2.2794]
[1721348873003,2.9214,3423.1,3422.3,2.922]
[1721348873206,2.9214,3423.1,3422.5,2.92179]
[1721348873431,2.9212,3423.3,3422.5,2.92177]
[1721348873590,2.3872,3423.4,3422.3,2.92197]
[1721348873798,2.92156,3422.9,3422.3,3.73431]
[1721348874614,2.92158,3422.8,3422.3,3.73427]
[1721348874806,2.92158,3422.8,3422.3,2.92194]
[1721348875894,5.84289,3423.0,3422.3,5.84387]
[1721348876130,2.92141,3423.0,3422.3,5.84387]
[1721348876327,5.8429,3423.0,3422.3,2.92193]
[1721348876533,2.92151,3422.9,3422.3,2.92193]
[1721348878195,2.92151,3422.9,3422.3,3.734246]
[1721348878398,2.9214,3423.1,3422.4,2.92184]
[1721348878699,2.92143,3423.0,3422.4,2.92184]
[1721348880600,2.92127,3423.2,3422.5,2.92183]
[1721348880816,3.0,3423.5,3422.4,2.92191]
[1721348880817,2.92141,3423.0,3422.4,2.92191]
[1721348881138,2.9215,3422.9,3422.4,2.92191]
[1721348881302,3.0,3423.5,3422.0,2.2791]
[1721348881303,2.9218,3422.6,3422.0,5.20132]
[1721348881500,2.9218,3422.6,3422.0,8.12351]
[1721348881705,2.9218,3422.6,3422.0,5.20129]
[1721348881935,2.92158,3422.8,3422.2,2.92205]
[1721348882109,2.92145,3423.0,3422.3,2.922]
[1721348882313,2.9215,3422.9,3422.3,2.922]
[1721348883134,2.92145,3423.0,3422.3,2.922]
[1721348883135,2.92158,3422.8,3422.3,2.922]
[1721348883338,2.92158,3422.8,3422.1,2.9221]
[1721348883538,2.92158,3422.8,3422.2,3.31097305]
[1721348883704,2.92167,3422.7,3422.2,3.31097305]
[1721348884219,2.92158,3422.8,3422.2,3.31097305]
[1721348886031,2.92168,3422.7,3422.2,3.31097305]
[1721348886633,2.92158,3422.8,3422.2,3.31097305]
[1721348886798,2.92158,3422.8,3422.2,3.31093305]
[1721348887000,2.92158,3422.8,3422.3,0.55900331]
[1721348887421,5.50328,3423.4,3422.5,2.92178]
[1721348887422,5.84259,3423.2,3422.5,2.92178]
[1721348887638,2.92133,3423.1,3422.6,2.92175]
[1721348888818,2.92143,3423.0,3422.4,2.92184]
[1721348889017,2.92143,3423.0,3422.2,2.92204]
[1721348889018,2.92158,3422.8,3422.2,2.92204]
[1721348889218,2.92158,3422.8,3422.2,0.812327]
[1721348889513,2.92158,3422.8,3422.1,2.92213]
[1721348889918,2.9218,3422.6,3422.0,2.2791]
[1721348890331,2.9218,3422.6,3422.0,5.20132]
[1721348890526,2.9218,3422.6,3422.0,2.2791]
[1721348891743,2.9218,3422.6,3422.1,2.92217]
[1721348896853,2.92215,3422.2,3421.5,5.36306]
[1721348897051,2.92215,3422.2,3421.2,8.38435252]
[1721348897052,2.4203,3422.3,3421.1,5.36339]
[1721348897253,2.9225,3421.8,3421.1,2.4404]
[1721348898216,2.92266,3421.6,3421.1,2.4404]
[1721348899340,2.92266,3421.6,3420.7,5.23123]
[1721348899891,5.84535,3421.6,3420.9,2.92319]
[1721348900735,2.92271,3421.5,3420.9,2.92319]
[1721348901437,0.584537,3421.5,3420.7,2.3079]
[1721348901663,2.92309,3421.1,3420.7,2.3079]
[1721348901931,2.92288,3421.3,3420.7,2.3079]
[1721348902154,2.92288,3421.3,3420.7,5.23127]
[1721348902571,2.92295,3421.2,3420.7,5.23127]
[1721348903872,2.92286,3421.3,3420.7,8.15453]
[1721348904176,2.92286,3421.3,3420.8,0.815453]
[1721348905754,2.92286,3421.3,3420.8,3.738733]
[1721348907071,2.92286,3421.3,3420.8,0.815453]
[1721348907365,2.92286,3421.3,3420.7,2.3079]
[1721348907568,2.92286,3421.3,3420.7,5.23127]
[1721348907777,5.8458,3421.3,3420.7,5.23127]
[1721348908370,2.92298,3421.2,3420.7,2.3079]
[1721348909774,2.92298,3421.2,3419.9,9.00404]
[1721348909775,0.584577,3421.2,3420.1,2.92382]
[1721348909951,2.9229,3421.3,3420.1,2.92382]
[1721348910149,5.4327,3421.5,3419.9,5.33021]
[1721348910150,2.92342,3420.7,3420.0,2.92397]
[1721348910372,2.92347,3420.6,3420.0,2.92397]
[1721348910870,2.92347,3420.6,3419.9,2.4062]
[1721348911071,3.0,3421.4,3419.6,2.4062]
[1721348911072,2.92339,3420.7,3419.6,2.4062]
[1721348911271,2.92373,3420.3,3419.6,2.4062]
[1721348911473,2.92394,3420.1,3419.6,2.4062]
[1721348911874,2.92373,3420.3,3419.7,2.92418]
[1721348912450,2.92373,3420.3,3419.7,3.749651]
[1721348912651,2.92341,3420.7,3419.9,2.92399]
[1721348912966,2.92373,3420.3,3419.7,3.749671]
[1721348914475,2.92373,3420.3,3419.7,2.9242]
[1721348915175,2.9238,3420.2,3419.7,2.9242]
[1721348915740,2.9237,3420.4,3419.8,2.92414]
[1721348916250,3.0,3420.6,3419.9,2.92406]
[1721348916251,5.92353,3420.6,3419.9,2.92406]
[1721348916473,2.92356,3420.5,3419.9,2.92406]
[1721348917763,2.92365,3420.4,3419.7,2.92416]
[1721348917980,2.92365,3420.4,3419.8,2.92409]
[1721348919309,2.92365,3420.4,3419.8,3.749535]
[1721348920045,5.84736,3420.4,3419.8,3.749535]
[1721348920283,2.92365,3420.4,3419.8,2.92409]
[1721348920848,2.92372,3420.3,3419.8,2.92409]
[1721348921160,5.84736,3420.4,3419.8,2.92409]
[1721348921389,2.92373,3420.3,3419.8,2.92409]
[1721348922278,5.84752,3420.3,3419.6,8.25475]
[1721348922477,2.92373,3420.3,3419.6,6.155915]
[1721348922787,2.92373,3420.3,3419.7,2.92418]
[1721348922952,2.92373,3420.3,3419.6,6.155915]
[1721348923387,2.92373,3420.3,3419.6,5.33044]
[1721348923687,2.92393,3420.1,3419.6,2.92424]
[1721348924083,5.84752,3420.3,3419.7,2.92422]
[1721348924305,2.92373,3420.3,3419.5,2.92434]
[1721348925358,2.92389,3420.1,3419.5,2.92434]
[1721348925605,2.92389,3420.1,3419.6,0.584879]
[1721348926817,2.92373,3420.3,3419.6,3.509189]
[1721348926994,2.92373,3420.3,3419.7,5.18187]
[1721348927916,2.92373,3420.3,3419.8,2.92414]
[1721348928073,9.8051,3421.2,3419.9,0.05847769]
[1721348928275,2.9231,3421.1,3420.5,2.92354]
[1721348928703,2.92315,3421.0,3420.5,2.92354]
[1721348929977,2.92315,3421.0,3420.2,2.92376]
[1721348929978,2.9231,3421.1,3420.3,2.92364]
[1721348930178,2.9231,3421.1,3420.0,5.18164]
[1721348930179,2.9234,3420.7,3420.0,5.18164]
[1721348930611,2.92356,3420.5,3420.0,2.2577]
[1721348930779,2.92356,3420.5,3419.8,2.92413]
[1721348930978,2.92356,3420.5,3419.9,2.92405]
[1721348931799,2.92359,3420.5,3419.9,2.92405]
[1721348931990,2.9234,3420.7,3420.1,2.92384]
[1721348932190,2.92346,3420.6,3420.1,2.92384]
[1721348932387,2.92355,3420.5,3419.9,2.92402]
[1721348932810,2.92355,3420.5,3419.9,5.84801]
[1721348933000,2.92355,3420.5,3419.9,2.92399]
[1721348934787,3.508245,3420.5,3419.7,2.92418]
[1721348935113,2.92373,3420.3,3419.7,2.92418]
[1721348935812,2.92373,3420.3,3419.5,5.33414]
[1721348935990,2.92373,3420.3,3419.5,8.25847]
[1721348935991,2.92389,3420.1,3419.5,8.25847]
[1721348936314,2.92389,3420.1,3419.6,2.92431]
[1721348937917,5.84752,3420.3,3419.6,2.92431]
[1721348938298,2.92381,3420.2,3419.6,2.92431]
[1721348938501,2.92381,3420.2,3419.7,2.92423]
[1721348939412,2.92381,3420.2,3419.5,2.4098]
[1721348939615,2.92398,3420.0,3419.5,5.33419]
[1721348939918,2.92398,3420.0,3419.5,2.4098]
[1721348940230,2.92408,3419.9,3419.3,2.92456]
[1721348940810,2.92419,3419.8,3419.2,2.92465]
[1721348941010,2.92419,3419.8,3419.1,2.344]
[1721348941295,2.92424,3419.7,3419.2,2.92465]
[1721348943323,2.92409,3419.9,3419.3,2.92456]
[1721348943521,2.92398,3420.0,3419.4,3.743721]
[1721348944317,5.84789,3420.1,3419.4,3.743721]
[1721348944515,2.92393,3420.1,3419.5,2.92439]
[1721348944702,2.92364,3420.4,3419.8,2.92408]
[1721348944910,2.92364,3420.4,3419.7,2.92418]
[1721348944911,2.92377,3420.3,3419.7,2.92418]
[1721348945098,2.92364,3420.4,3419.3,2.9245]
[1721348945099,2.92404,3420.0,3419.3,2.9245]
[1721348945296,2.92408,3419.9,3419.3,5.849]
[1721348945789,2.92408,3419.9,3419.3,2.9245]
[1721348946213,2.92415,3419.8,3419.1,5.26866]
[1721348946417,2.92442,3419.5,3419.1,2.344]
[1721348946690,2.92442,3419.5,3418.9,5.84969]
[1721348946896,3.216705,3419.7,3419.0,2.92482]
[1721348947090,3.216705,3419.7,3418.9,2.92484]
[1721348947297,2.92429,3419.7,3419.1,2.92473]
[1721348947516,2.92429,3419.7,3419.1,2.92467]
[1721348947727,2.92429,3419.7,3418.8,9.8483]
[1721348948026,3.75951798,3420.4,3419.4,2.92448]
[1721348948027,2.92394,3420.1,3419.4,2.92448]
[1721348948239,0.884777,3420.0,3419.4,2.92448]
[1721348948440,2.9238,3420.2,3419.6,2.92428]
[1721348948441,2.9239,3420.1,3419.6,2.92428]
[1721348948660,3.75952798,3420.4,3419.6,2.92428]
[1721348948836,3.75952798,3420.4,3419.8,2.92408]
[1721348950853,3.75952798,3420.4,3419.9,2.92403]
[1721348951059,0.83587798,3420.4,3419.9,2.92403]
[1721348951229,2.92357,3420.5,3419.9,2.92403]
[1721348951424,2.92357,3420.5,3419.3,2.2553]
[1721348951425,2.92372,3420.3,3419.7,2.92419]
[1721348951869,2.92372,3420.3,3419.8,2.92412]
[1721348952033,2.92372,3420.3,3419.6,2.92427]
[1721348952235,3.0,3420.4,3419.6,2.92427]
[1721348952434,3.0,3420.4,3420.0,2.92397]
[1721348952654,2.92341,3420.7,3420.1,2.3515]
[1721348952854,3.0,3420.6,3420.1,2.3515]
[1721348953835,7.42,3421.0,3420.1,2.3515]
[1721348954040,3.0,3420.9,3420.4,2.92358]
[1721348954241,5.92311,3421.1,3420.4,5.84714]
[1721348954758,5.92311,3421.1,3420.1,2.3515]
[1721348954759,7.03389,3421.1,3420.2,5.84748]
[1721348954980,7.03389,3421.1,3420.2,2.92372]
[1721348955565,7.03389,3421.1,3420.4,2.92358]
[1721348955566,2.92312,3421.0,3420.4,2.92358]
[1721348955773,3.0,3420.9,3420.4,2.92358]
[1721348956930,3.0,3420.9,3420.1,2.3515]
[1721348957052,2.2618,3421.3,3420.1,5.27532]
[1721348957053,3.334428,3420.8,3420.1,5.27532]
[1721348957256,2.92335,3420.8,3420.1,5.27532]
[1721348957442,5.84672,3420.8,3420.1,5.27532]
[1721348958077,2.9234,3420.7,3420.1,5.27532]
[1721348958689,2.92335,3420.8,3420.2,2.9238]
[1721348958840,2.9234,3420.7,3420.1,2.3515]
[1721348959042,2.9234,3420.7,3420.1,5.27533]
[1721348959238,2.92346,3420.6,3420.1,2.3515]
[1721348960056,2.92346,3420.6,3420.1,5.27538]
[1721348960994,3.807999,3420.8,3420.2,2.9238]
[1721348962397,2.92347,3420.6,3420.1,2.92388]
[1721348962684,0.6731159,3420.7,3420.1,2.92388]
[1721348963204,3.5965059,3420.7,3420.2,2.92379]
[1721348963953,0.6731159,3420.7,3419.8,2.27]
[1721348964173,2.92362,3420.5,3419.8,5.1941]
[1721348964377,2.92362,3420.5,3419.9,2.92405]
[1721348964577,2.92342,3420.7,3419.9,2.92398]
[1721348964906,2.92342,3420.7,3420.1,2.92383]
[1721348965988,3.55391249,3420.7,3419.9,5.84798]
[1721348966191,2.92354,3420.6,3420.0,2.92396]
[1721348967098,2.92355,3420.5,3420.0,2.92396]
[1721348967285,2.92387,3420.2,3419.5,5.26668]
[1721348967600,2.9239,3420.1,3419.5,5.26668]
[1721348967806,2.92413,3419.9,3419.3,2.92453]
[1721348968020,2.92398,3420.0,3419.1,2.4283]
[1721348968337,0.584777,3420.1,3419.1,2.4283]
[1721348968338,2.92421,3419.8,3419.1,2.4283]
[1721348968615,2.92432,3419.6,3419.1,2.4283]
[1721348968967,2.92432,3419.6,3419.1,5.35303]
[1721348969366,2.92421,3419.8,3419.2,2.92464]
[1721348970174,5.84844,3419.8,3419.2,2.92464]
[1721348970385,2.92421,3419.8,3419.2,2.92464]
[1721348970605,2.92424,3419.7,3419.2,2.92464]
[1721348972071,2.92387,3420.2,3419.5,2.92435]
[1721348972275,2.92387,3420.2,3419.6,2.92426]
[1721348972512,3.0,3420.1,3419.6,2.92426]
[1721348972809,3.0,3420.1,3419.6,2.92425]
[1721348973323,3.0,3420.1,3419.6,2.92424]
[1721348973676,3.0,3420.1,3419.7,2.92423]
[1721348974325,2.92365,3420.4,3419.8,2.9241]
[1721348974678,2.92365,3420.4,3419.9,2.924]
[1721348975854,10.34349,3420.6,3420.0,2.92396]
[1721348976126,5.92355,3420.5,3420.0,2.92396]
[1721348976490,2.92382,3420.2,3419.7,2.3024]
[1721348976700,2.92382,3420.2,3419.6,2.92427]
[1721348976701,3.808565,3420.2,3419.6,2.92427]
[1721348977104,2.92363,3420.4,3419.8,2.92413]
[1721348977433,5.84734,3420.4,3419.8,2.92413]
[1721348977603,2.92374,3420.3,3419.8,2.92413]
[1721348980826,2.92383,3420.2,3419.6,2.92427]
[1721348981011,2.9239,3420.1,3419.6,2.92427]
[1721348982990,2.9239,3420.1,3419.4,8.24216]
[1721348983328,2.92419,3419.8,3419.4,2.3933]
[1721348983627,2.92427,3419.7,3419.1,2.92473]
[1721348984125,2.92427,3419.7,3419.0,5.30016]
[1721348984126,2.92433,3419.6,3419.0,2.3754]
[1721348984527,2.92433,3419.6,3419.0,5.30022]
[1721348986421,3.216609,3419.8,3419.1,2.92472]
[1721348986590,6.140829,3419.8,3419.2,2.92464]
[1721348987001,2.92425,3419.7,3419.2,2.92464]
[1721348988242,2.92401,3420.0,3419.2,2.92464]
[1721348989029,2.92419,3419.8,3419.2,2.92464]
[1721348989329,2.92424,3419.7,3419.2,2.92464]
[1721348990631,2.92424,3419.7,3419.1,2.92474]
[1721348993737,2.92409,3419.9,3419.2,2.92464]
[1721348993942,2.92376,3420.3,3419.1,0.822489]
[1721348994118,2.3071,3420.4,3419.5,2.92434]
[1721348994119,2.92394,3420.1,3419.5,2.92434]
[1721348994433,3.516424,3420.0,3419.5,2.92434]
[1721348994649,2.92406,3419.9,3419.3,2.92449]
[1721348995147,2.92415,3419.8,3419.3,2.92449]
[1721348995326,6.516424,3420.0,3419.4,2.92448]
[1721348995527,2.92406,3419.9,3419.4,2.92448]
[1721348995726,0.9440374,3419.8,3419.1,2.92473]
[1721348996031,5.84824,3419.9,3419.3,2.92456]
[1721348996226,2.92424,3419.7,3418.9,2.92489]
[1721348996432,2.92445,3419.5,3418.7,2.92504]
[1721348997332,2.92452,3419.4,3418.7,2.92504]
[1721348997527,2.92452,3419.4,3418.6,2.4108]
[1721348997528,2.92472,3419.2,3418.6,2.4108]
[1721348997928,2.92485,3419.0,3418.6,2.4108]
[1721348999054,2.92496,3418.9,3418.6,2.4108]
[1721348999226,2.9251,3418.7,3418.2,2.2768]
[1721348999926,2.92524,3418.6,3418.2,2.2768]
[1721349000123,2.92444,3419.5,3418.2,2.2768]
[1721349000327,2.92573,3418.0,3417.8,2.2776]
[1721349000633,2.314,3419.1,3417.8,2.2776]
[1721349000634,2.92554,3418.2,3417.8,2.2776]
[1721349002556,2.92554,3418.2,3416.9,8.99645732]
[1721349002557,2.4498,3418.7,3417.3,5.24602]
[1721349002758,2.4498,3418.7,3417.4,2.92618]
[1721349002759,2.92584,3417.9,3417.4,2.92618]
[1721349003957,2.92544,3418.3,3417.4,2.92618]
[1721349004124,2.92544,3418.3,3417.3,2.3198]
[1721349004335,3.07144,3418.3,3417.6,2.92597]
[1721349004530,3.07144,3418.3,3417.6,2.92596]
[1721349005262,0.146,3418.3,3417.8,2.92579]
[1721349005866,0.146,3418.3,3417.6,2.92599]
[1721349005867,3.07144,3418.3,3417.6,2.92596]
[1721349006034,2.92575,3418.0,3417.4,2.92616]
[1721349006560,1.045662,3418.3,3417.3,2.3198]
[1721349006758,2.92579,3417.9,3417.2,2.92633]
[1721349007334,2.92579,3417.9,3417.3,2.92628]
[1721349007751,2.92574,3418.0,3417.3,2.92628]
[1721349007965,2.92574,3418.0,3417.4,2.92618]
[1721349008161,3.971132,3418.3,3417.4,2.92618]
[1721349008162,0.146,3418.3,3417.5,2.3099]
[1721349008339,0.146,3418.3,3418.0,2.92563]
[1721349008538,0.146,3418.3,3416.8,3.08]
[1721349008539,0.146,3418.3,3418.1,2.3099]
[1721349008745,0.146,3418.3,3417.8,2.9258]
[1721349009280,0.146,3418.3,3417.7,2.4017]
[1721349009436,0.146,3418.3,3418.1,2.92555]
[1721349009747,0.146,3418.3,3418.2,2.92551]
[1721349010966,0.146,3418.3,3418.2,5.85102]
[1721349011178,0.146,3418.3,3418.2,11.22083]
[1721349011379,0.146,3418.3,3418.2,14.69634]
[1721349011531,0.146,3418.3,3418.2,17.69634]
[1721349011931,1e-08,3418.3,3418.2,17.69634]
[1721349012147,2.92394,3420.1,3419.4,2.92443]
[1721349012340,2.92384,3420.2,3419.6,2.92429]
[1721349012574,2.92384,3420.2,3419.4,2.92441]
[1721349012775,0.292384,3420.1,3419.6,0.146]
[1721349013789,3.216274,3420.1,3419.6,0.146]
[1721349013946,2.92419,3419.8,3419.6,0.146]
[1721349014360,2.92401,3420.0,3419.6,0.146]
[1721349014575,5.92406,3419.9,3419.6,0.146]
[1721349014775,6.8380874,3419.9,3419.6,0.146]
[1721349015558,3.0,3419.9,3419.6,3.07025]
[1721349015837,3.0,3420.0,3419.6,3.07025]
[1721349016011,3.0,3420.2,3419.7,2.92421]
[1721349018187,5.9238,3420.2,3419.6,5.33811]
[1721349018383,3.0,3420.2,3419.7,2.92422]
[1721349018588,3.0,3420.3,3419.7,2.92422]
[1721349018883,6.808444,3420.3,3419.7,2.92422]
[1721349019057,3.884724,3420.3,3419.8,2.92414]
[1721349019256,3.0,3420.3,3419.8,2.92414]